[Event "8th Gibraltar U16-Junior 2018"]
[Site "Caleta"]
[Date "2018.08.17"]
[Round "1"]
[White "Atara, Omeet J"]
[Black "Mahtani, Johan"]
[Result "1/2-1/2"]
[ECO "A29"]
[WhiteElo "1704"]
[BlackElo "1166"]
[Annotator "NA RC"]
[PlyCount "199"]
[EventDate "2018.08.17"]
[EventType "swiss"]
[EventCountry "GGB"]
[SourceTitle "playchess.com"]
[Source "ChessBase"]
[SourceQuality "1"]
[TimeControl "6600+10"]

1. c4 {[%emt 0:00:00]} Nf6 {[%emt 0:00:28]} 2. Nc3 {[%emt 0:00:01]} e5 {[%emt 0:00:28]} 3. Nf3 {[%emt 0:00:08]} Nc6 {[%emt 0:00:14]} 4. g3 {[%emt 0:00:22]} Bc5 {[%emt 0:00:55]} 5. Bg2 {[%emt 0:00:09]} O-O {[%emt 0:00:25]} 6. a3 {[%emt 0:00:58]} Bb6 {[%emt 0:00:26]} 7. d3 {[%emt 0:07:53]} d6 {[%emt 0:00:23]} 8. Bg5 {[%emt 0:01:22]} h6 {[%emt 0:01:36]} 9. Bd2 {[%emt 0:07:08]} Bf5 {[%emt 0:01:47]} 10. Nh4 {[%emt 0:01:58]} Bd7 {[%emt 0:03:41]} 11. b4 {[%emt 0:04:19]} Rb8 {[%emt 0:05:49]} 12. O-O {[%emt 0:05:15]} Ne7 {[%emt 0:03:47]} 13. Qc2 {[%emt 0:10:11]} Nf5 {[%emt 0:04:55]} 14. Nxf5 {[%emt 0:00:39]} Bxf5 {[%emt 0:00:15]} 15. e4 {[%emt 0:02:24]} Be6 {[%emt 0:01:59]} 16. Ne2 {[%emt 0:03:40]} Bg4 {[%emt 0:05:00]} 17. Rfe1 {[%emt 0:06:45]} Bxe2 {[%emt 0:03:36]} 18. Rxe2 {[%emt 0:00:08]} c5 {[%emt 0:00:41]} 19. Qb3 {[%emt 0:14:26]} cxb4 {[%emt 0:04:42]} 20. Bxb4 {[%emt 0:03:43]} Bc5 {[%emt 0:04:03]} 21. Rb1 {[%emt 0:03:04]} Qb6 {[%emt 0:02:31]} 22. Qa2 {[%emt 0:03:30]} Ng4 {[%emt 0:02:49]} 23. h3 {[%emt 0:04:07]} Nf6 {[%emt 0:02:36]} 24. Reb2 {[%emt 0:01:16]} Bxb4 {[%emt 0:02:28]} 25. Rxb4 {[%emt 0:00:07]} Qc6 {[%emt 0:00:06]} 26. Qb3 {[%emt 0:00:58]} b6 {[%emt 0:00:31]} 27. a4 {[%emt 0:01:39]} Nd7 {[%emt 0:00:42]} 28. Qc2 {[%emt 0:07:02]} Rfc8 {[%emt 0:01:53]} 29. h4 {[%emt 0:00:00]} Nc5 {[%emt 0:01:14]} 30. Bf1 {[%emt 0:01:23]} Rc7 {[%emt 0:01:26]} 31. Ra1 {[%emt 0:01:27]} a5 {[%emt 0:01:06]} 32. Rb5 {[%emt 0:00:28]} Ne6 {[%emt 0:00:07]} 33. Qb2 {[%emt 0:03:20]} Nd4 {[%emt 0:01:39]} 34. Rxa5 {[%emt 0:02:05]} Rcb7 {[%emt 0:03:57]} 35. Rd5 {[%emt 0:00:28]} Ra7 {[%emt 0:00:01]} 36. a5 {[%emt 0:01:25]} Ne6 {[%emt 0:01:07]} 37. Qb5 {[%emt 0:03:02]} Rc8 {[%emt 0:08:23]} 38. Qb1 {[%emt 0:01:35]} Nc7 {[%emt 0:00:18]} 39. Qxb6 {[%emt 0:04:31]} Qxb6 {[%emt 0:00:30]} 40. axb6 {[%emt 0:00:00]} Rxa1 {[%emt 0:00:01]} 41. bxc7 {[%emt 0:00:01]} Rxc7 {[%emt 0:00:01]} 42. Rxd6 {[%emt 0:00:01]} Rb7 {[%emt 0:02:07]} 43. Kg2 {[%emt 0:00:13]} Kf8 {[%emt 0:00:11]} 44. c5 {[%emt 0:01:38]} Rc1 {[%emt 0:00:14]} 45. Rd5 {[%emt 0:00:12]} f6 {[%emt 0:00:23]} 46. Be2 {[%emt 0:00:40]} Rc7 {[%emt 0:00:49]} 47. Rd8+ {[%emt 0:00:28]} Ke7 {[%emt 0:00:09]} 48. Rg8 {[%emt 0:00:01]} Kf7 {[%emt 0:00:10]} 49. Rh8 {[%emt 0:00:22]} R7xc5 {[%emt 0:00:31]} 50. Bh5+ {[%emt 0:00:11]} Ke7 {[%emt 0:00:22]} 51. Rg8 {[%emt 0:00:11]} g5 {[%emt 0:00:36]} 52. Rg7+ {[%emt 0:00:12]} Kd8 {[%emt 0:00:33]} 53. Rg6 {[%emt 0:00:10]} gxh4 {[%emt 0:00:39]} 54. gxh4 {[%emt 0:00:05]} R1c3 {[%emt 0:00:23]} 55. Rxf6 {[%emt 0:00:08]} Rxd3 {[%emt 0:00:19]} 56. Rxh6 {[%emt 0:00:01]} Rc7 {[%emt 0:00:19]} 57. Bg6 {[%emt 0:00:28]} Rg7 {[%emt 0:00:18]} 58. h5 {[%emt 0:00:01]} Rd6 {[%emt 0:00:22]} 59. Kf3 {[%emt 0:00:39]} Rf6+ {[%emt 0:00:47]} 60. Ke3 {[%emt 0:00:01]} Ke7 {[%emt 0:01:08]} 61. Rh8 {[%emt 0:00:23]} Rf8 {[%emt 0:00:28]} 62. Rh6 {[%emt 0:00:18]} Rf6 {[%emt 0:00:02]} 63. Rh8 {[%emt 0:00:01]} Rf8 {[%emt 0:00:03]} 64. Rxf8 {[%emt 0:00:01]} Kxf8 {[%emt 0:00:19]} 65. f4 {[%emt 0:00:16]} Re7 {[%emt 0:03:56]} 66. f5 {[%emt 0:00:05]} Kg7 {[%emt 0:00:33]} 67. Kd3 {[%emt 0:00:10]} Rd7+ {[%emt 0:00:09]} 68. Ke3 {[%emt 0:00:25]} Rd6 {[%emt 0:00:23]} 69. Kf3 {[%emt 0:00:04]} Rd3+ {[%emt 0:00:16]} 70. Kg4 {[%emt 0:00:00]} Rd1 {[%emt 0:00:25]} 71. Kg5 {[%emt 0:00:18]} Rg1+ {[%emt 0:00:01]} 72. Kh4 {[%emt 0:00:01]} Rh1+ {[%emt 0:00:22]} 73. Kg3 {[%emt 0:00:02]} Rg1+ {[%emt 0:00:19]} 74. Kf3 {[%emt 0:00:01]} Rf1+ {[%emt 0:00:13]} 75. Ke2 {[%emt 0:00:16]} Rf4 {[%emt 0:00:21]} 76. Kd3 {[%emt 0:00:06]} Rf1 {[%emt 0:00:01]} 77. Be8 {[%emt 0:00:40]} Rd1+ {[%emt 0:00:41]} 78. Ke3 {[%emt 0:00:03]} Re1+ {[%emt 0:00:15]} 79. Kf3 {[%emt 0:00:10]} Rf1+ {[%emt 0:00:10]} 80. Ke2 {[%emt 0:00:04]} Rf4 {[%emt 0:00:37]} 81. Kd3 {[%emt 0:00:00]} Rf3+ {[%emt 0:00:18]} 82. Kc4 {[%emt 0:00:07]} Kf8 {[%emt 0:01:18]} 83. Bg6 {[%emt 0:00:26]} Kg7 {[%emt 0:00:51]} 84. Kd5 {[%emt 0:00:12]} Kf6 {[%emt 0:00:01]} 85. h6 {[%emt 0:00:05]} Rh3 {[%emt 0:00:30]} 86. h7 {[%emt 0:00:02]} Rd3+ {[%emt 0:00:41]} 87. Kc6 {[%emt 0:00:00]} Rc3+ {[%emt 0:00:33]} 88. Kd7 {[%emt 0:00:01]} Rd3+ {[%emt 0:00:03]} 89. Ke8 {[%emt 0:00:03]} Ra3 {[%emt 0:00:11]} 90. h8=B+ {[%emt 0:00:12]} Kg5 {[%emt 0:00:09]} 91. Bxe5 {[%emt 0:00:02]} Ra4 {[%emt 0:00:05]} 92. Bf4+ {[%emt 0:01:10]} Kxf4 {[%emt 0:00:50]} 93. f6 {[%emt 0:00:00]} Ra8+ {[%emt 0:00:14]} 94. Kf7 {[%emt 0:00:07]} Ke5 {[%emt 0:00:32]} 95. Kg7 {[%emt 0:00:11]} Ke6 {[%emt 0:00:45]} 96. f7 {[%emt 0:00:15]} Ke7 {[%emt 0:00:02]} 97. e5 {[%emt 0:00:17]} Rf8 {[%emt 0:00:15]} 98. Bd3 {[%emt 0:00:21]} Rxf7+ {[%emt 0:00:02]} 99. Kg6 {[%emt 0:00:04]} Ke6 {[%emt 0:00:39]} 100. Bc4+ {[%emt 0:00:06]} 1/2-1/2

[Event "8th Gibraltar U16-Junior 2018"]
[Site "Caleta"]
[Date "2018.08.17"]
[Round "1"]
[White "Lorente Serrano, Rosa Adela"]
[Black "Le, Vincent"]
[Result "1-0"]
[ECO "A01"]
[WhiteElo "1682"]
[BlackElo "1017"]
[Annotator "NA RC"]
[PlyCount "73"]
[EventDate "2018.08.17"]
[EventType "swiss"]
[EventCountry "GGB"]
[SourceTitle "playchess.com"]
[Source "ChessBase"]
[SourceQuality "1"]
[TimeControl "6600+10"]

1. b3 {[%emt 0:00:00]} e5 {[%emt 0:00:00]} 2. Bb2 {[%emt 0:00:04]} Nc6 {[%emt 0:00:10]} 3. c4 {[%emt 0:00:07]} Bc5 {[%emt 0:00:18]} 4. e3 {[%emt 0:00:09]} d6 {[%emt 0:00:15]} 5. a3 {[%emt 0:00:53]} Nf6 {[%emt 0:00:32]} 6. d3 {[%emt 0:00:34]} Be6 {[%emt 0:00:40]} 7. Nf3 {[%emt 0:00:42]} Bg4 {[%emt 0:00:20]} 8. Nbd2 {[%emt 0:01:00]} Qe7 {[%emt 0:00:27]} 9. Ne4 {[%emt 0:07:57]} Nxe4 {[%emt 0:01:25]} 10. dxe4 {[%emt 0:00:11]} Qf6 {[%emt 0:01:10]} 11. Be2 {[%emt 0:00:17]} O-O-O {[%emt 0:01:35]} 12. Qc2 {[%emt 0:02:09]} h5 {[%emt 0:01:37]} 13. O-O-O {[%emt 0:00:21]} g5 {[%emt 0:00:46]} 14. h4 {[%emt 0:04:42]} Bxf3 {[%emt 0:00:17]} 15. hxg5 {[%emt 0:00:09]} Qxg5 {[%emt 0:02:32]} 16. Bxf3 {[%emt 0:01:14]} Nd4 {[%emt 0:01:15]} 17. Bxd4 {[%emt 0:02:35]} exd4 {[%emt 0:00:23]} 18. b4 {[%emt 0:05:46]} Bb6 {[%emt 0:00:44]} 19. Kb1 {[%emt 0:00:45]} dxe3 {[%emt 0:00:32]} 20. fxe3 {[%emt 0:00:39]} Bxe3 {[%emt 0:00:18]} 21. Rd5 {[%emt 0:00:47]} Qe7 {[%emt 0:01:22]} 22. Rhxh5 {[%emt 0:00:18]} c6 {[%emt 0:01:31]} 23. Rdf5 {[%emt 0:11:17]} Bg5 {[%emt 0:02:07]} 24. Rfxg5 {[%emt 0:01:51]} f6 {[%emt 0:01:45]} 25. Rf5 {[%emt 0:00:57]} Kb8 {[%emt 0:02:06]} 26. Qc3 {[%emt 0:03:40]} Rhf8 {[%emt 0:00:43]} 27. Rh6 {[%emt 0:01:05]} d5 {[%emt 0:02:38]} 28. cxd5 {[%emt 0:02:11]} cxd5 {[%emt 0:01:33]} 29. Qd4 {[%emt 0:12:10]} dxe4 {[%emt 0:02:00]} 30. Qxe4 {[%emt 0:00:00]} Qc7 {[%emt 0:01:02]} 31. Rc5 {[%emt 0:00:00]} Qb6 {[%emt 0:00:51]} 32. Rh7 {[%emt 0:00:41]} Rd1+ {[%emt 0:01:49]} 33. Kc2 {[%emt 0:02:07]} Rd2+ {[%emt 0:00:49]} 34. Kxd2 {[%emt 0:00:16]} Rd8+ {[%emt 0:00:11]} 35. Kc2 {[%emt 0:00:05]} Rd2+ {[%emt 0:00:42]} 36. Kxd2 {[%emt 0:00:03]} Qd6+ {[%emt 0:00:05]} 37. Kc2 {[%emt 0:00:11]} 1-0

[Event "8th Gibraltar U16-Junior 2018"]
[Site "Caleta"]
[Date "2018.08.17"]
[Round "1"]
[White "Shepherd, Tom"]
[Black "Cuellar Montes, Alejandro"]
[Result "0-1"]
[ECO "E15"]
[WhiteElo "1531"]
[BlackElo "2074"]
[Annotator "NA RC"]
[PlyCount "114"]
[EventDate "2018.08.17"]
[EventType "swiss"]
[EventCountry "GGB"]
[SourceTitle "playchess.com"]
[Source "ChessBase"]
[SourceQuality "1"]
[TimeControl "6600+10"]

1. d4 {[%emt 0:00:00]} Nf6 {[%emt 0:00:00]} 2. Nf3 {[%emt 0:00:00]} e6 {[%emt 0:00:11]} 3. c4 {[%emt 0:00:02]} b6 {[%emt 0:00:18]} 4. g3 {[%emt 0:00:07]} Ba6 {[%emt 0:00:09]} 5. Qa4 {[%emt 0:00:07]} Be7 {[%emt 0:02:42]} 6. Bg2 {[%emt 0:03:22]} Bb7 {[%emt 0:00:58]} 7. O-O {[%emt 0:00:24]} O-O {[%emt 0:00:41]} 8. Nc3 {[%emt 0:00:06]} c5 {[%emt 0:02:59]} 9. dxc5 {[%emt 0:00:18]} bxc5 {[%emt 0:02:53]} 10. Rd1 {[%emt 0:11:42]} Bc6 {[%emt 0:03:18]} 11. Qc2 {[%emt 0:00:51]} Qb6 {[%emt 0:08:40]} 12. e4 {[%emt 0:09:58]} d6 {[%emt 0:06:49]} 13. Bf4 {[%emt 0:05:22]} e5 {[%emt 0:07:53]} 14. Bg5 {[%emt 0:00:25]} Nbd7 {[%emt 0:03:12]} 15. Nd5 {[%emt 0:04:57]} Bxd5 {[%emt 0:02:54]} 16. exd5 {[%emt 0:00:13]} h6 {[%emt 0:02:16]} 17. Bc1 {[%emt 0:05:13]} Rab8 {[%emt 0:11:41]} 18. Rb1 {[%emt 0:05:00]} a5 {[%emt 0:09:21]} 19. Nh4 {[%emt 0:04:27]} Rfe8 {[%emt 0:05:03]} 20. Nf5 {[%emt 0:01:29]} Bf8 {[%emt 0:00:17]} 21. Bd2 {[%emt 0:06:22]} Kh8 {[%emt 0:07:44]} 22. f4 {[%emt 0:05:03]} exf4 {[%emt 0:06:00]} 23. Bxf4 {[%emt 0:00:17]} Ne5 {[%emt 0:01:21]} 24. Rf1 {[%emt 0:04:18]} Ng6 {[%emt 0:07:09]} 25. Bd2 {[%emt 0:08:06]} Ng4 {[%emt 0:08:18]} 26. Bc3 {[%emt 0:07:57]} Kg8 {[%emt 0:01:29]} 27. Be4 {[%emt 0:03:17]} Qd8 {[%emt 0:02:59]} 28. h3 {[%emt 0:04:49]} N4e5 {[%emt 0:00:21]} 29. h4 {[%emt 0:01:54]} Ng4 {[%emt 0:01:15]} 30. Bd2 {[%emt 0:05:17]} N6e5 {[%emt 0:00:47]} 31. Ne3 {[%emt 0:04:06]} Nxe3 {[%emt 0:00:22]} 32. Bxe3 {[%emt 0:00:04]} Qe7 {[%emt 0:00:55]} 33. Bg2 {[%emt 0:01:40]} Nxc4 {[%emt 0:02:27]} 34. Bxh6 {[%emt 0:00:08]} gxh6 {[%emt 0:00:03]} 35. Qxc4 {[%emt 0:00:08]} Qe3+ {[%emt 0:00:15]} 36. Kh2 {[%emt 0:00:12]} Rb4 {[%emt 0:00:14]} 37. Qc2 {[%emt 0:01:05]} Qe5 {[%emt 0:00:20]} 38. Qf2 {[%emt 0:01:40]} Re7 {[%emt 0:00:22]} 39. Kg1 {[%emt 0:01:04]} Rg4 {[%emt 0:00:48]} 40. Rbe1 {[%emt 0:00:41]} Qxg3 {[%emt 0:00:12]} 41. Qxg3 {[%emt 0:00:01]} Rxg3 {[%emt 0:00:02]} 42. Rxe7 {[%emt 0:00:02]} Bxe7 {[%emt 0:00:01]} 43. h5 {[%emt 0:00:17]} Rg5 {[%emt 0:00:08]} 44. Rf3 {[%emt 0:00:25]} Rxd5 {[%emt 0:01:01]} 45. Rg3+ {[%emt 0:00:44]} Rg5 {[%emt 0:00:01]} 46. Rxg5+ {[%emt 0:00:02]} Bxg5 {[%emt 0:00:12]} 47. Kf2 {[%emt 0:00:00]} Bc1 {[%emt 0:00:10]} 48. b3 {[%emt 0:00:01]} Kg7 {[%emt 0:00:17]} 49. Ke2 {[%emt 0:00:03]} Kf6 {[%emt 0:00:07]} 50. Kd3 {[%emt 0:00:05]} Ke5 {[%emt 0:00:04]} 51. Kc4 {[%emt 0:00:01]} f5 {[%emt 0:00:07]} 52. Kb5 {[%emt 0:00:14]} Bd2 {[%emt 0:00:01]} 53. Kc6 {[%emt 0:00:01]} f4 {[%emt 0:00:19]} 54. Bf3 {[%emt 0:00:01]} Bb4 {[%emt 0:00:08]} 55. Bg2 {[%emt 0:00:16]} Kd4 {[%emt 0:00:05]} 56. Kxd6 {[%emt 0:00:01]} c4+ {[%emt 0:00:01]} 57. Ke6 {[%emt 0:00:06]} c3 {[%emt 0:00:02]} 0-1

[Event "8th Gibraltar U16-Junior 2018"]
[Site "Caleta"]
[Date "2018.08.17"]
[Round "1"]
[White "Schulz, Victor"]
[Black "Onslow, Alfie"]
[Result "0-1"]
[ECO "B22"]
[WhiteElo "1510"]
[BlackElo "2040"]
[Annotator "NA RC"]
[PlyCount "96"]
[EventDate "2018.08.17"]
[EventType "swiss"]
[EventCountry "GGB"]
[SourceTitle "playchess.com"]
[Source "ChessBase"]
[SourceQuality "1"]
[TimeControl "6600+10"]

1. e4 {[%emt 0:00:00]} c5 {[%emt 0:00:07]} 2. c3 {[%emt 0:00:00]} Nf6 {[%emt 0:00:06]} 3. e5 {[%emt 0:00:12]} Nd5 {[%emt 0:00:06]} 4. d4 {[%emt 0:00:11]} cxd4 {[%emt 0:00:05]} 5. Nf3 {[%emt 0:00:06]} e6 {[%emt 0:00:06]} 6. Bc4 {[%emt 0:02:46]} d6 {[%emt 0:02:44]} 7. Bxd5 {[%emt 0:01:03]} exd5 {[%emt 0:00:02]} 8. exd6 {[%emt 0:02:55]} Qxd6 {[%emt 0:06:20]} 9. Nxd4 {[%emt 0:00:46]} Be7 {[%emt 0:01:27]} 10. O-O {[%emt 0:01:13]} O-O {[%emt 0:01:44]} 11. Be3 {[%emt 0:01:58]} Nc6 {[%emt 0:03:56]} 12. Nd2 {[%emt 0:01:05]} Be6 {[%emt 0:02:20]} 13. N2f3 {[%emt 0:05:14]} Qd7 {[%emt 0:03:50]} 14. Qe2 {[%emt 0:08:56]} Bg4 {[%emt 0:05:00]} 15. Nxc6 {[%emt 0:01:53]} bxc6 {[%emt 0:00:17]} 16. Ne5 {[%emt 0:01:02]} Bxe2 {[%emt 0:08:45]} 17. Nxd7 {[%emt 0:00:06]} Bxf1 {[%emt 0:00:13]} 18. Nxf8 {[%emt 0:00:08]} Bxg2 {[%emt 0:03:40]} 19. Nxh7 {[%emt 0:00:46]} Bf3 {[%emt 0:01:28]} 20. Ng5 {[%emt 0:00:26]} Bg4 {[%emt 0:01:02]} 21. Kg2 {[%emt 0:01:15]} Bf5 {[%emt 0:17:12]} 22. Nf3 {[%emt 0:08:48]} Be4 {[%emt 0:01:09]} 23. Kg3 {[%emt 0:00:07]} c5 {[%emt 0:01:45]} 24. Rd1 {[%emt 0:01:07]} Rb8 {[%emt 0:01:56]} 25. Rd2 {[%emt 0:00:23]} Rb6 {[%emt 0:01:45]} 26. Ne5 {[%emt 0:02:35]} Re6 {[%emt 0:04:32]} 27. f4 {[%emt 0:01:08]} Bd6 {[%emt 0:01:39]} 28. Kf2 {[%emt 0:01:52]} Rh6 {[%emt 0:01:28]} 29. Ke1 {[%emt 0:01:01]} Rh3 {[%emt 0:00:54]} 30. Bg1 {[%emt 0:00:43]} f6 {[%emt 0:00:52]} 31. Nd7 {[%emt 0:01:28]} Bxf4 {[%emt 0:00:20]} 32. Re2 {[%emt 0:00:21]} c4 {[%emt 0:07:43]} 33. Bxa7 {[%emt 0:02:37]} Bxh2 {[%emt 0:00:18]} 34. a4 {[%emt 0:00:08]} Bf4 {[%emt 0:03:15]} 35. a5 {[%emt 0:00:38]} Bd3 {[%emt 0:07:48]} 36. Re8+ {[%emt 0:00:25]} Kf7 {[%emt 0:00:28]} 37. Rf8+ {[%emt 0:01:40]} Ke7 {[%emt 0:00:56]} 38. Bc5+ {[%emt 0:00:06]} Kxd7 {[%emt 0:00:17]} 39. a6 {[%emt 0:00:03]} Bg3+ {[%emt 0:09:55]} 40. Kd2 {[%emt 0:01:54]} Rh2+ {[%emt 0:00:12]} 41. Ke3 {[%emt 0:02:32]} Bf2+ {[%emt 0:00:12]} 42. Kf4 {[%emt 0:00:05]} Bxc5 {[%emt 0:00:15]} 43. Rf7+ {[%emt 0:00:08]} Ke6 {[%emt 0:00:26]} 44. a7 {[%emt 0:00:15]} g5+ {[%emt 0:01:06]} 45. Kf3 {[%emt 0:00:10]} Be4+ {[%emt 0:00:40]} 46. Kg4 {[%emt 0:00:28]} Rg2+ {[%emt 0:01:16]} 47. Kh3 {[%emt 0:00:26]} g4+ {[%emt 0:00:45]} 48. Kh4 {[%emt 0:00:32]} Bf2+ {[%emt 0:00:35]} 0-1

[Event "8th Gibraltar U16-Junior 2018"]
[Site "Caleta"]
[Date "2018.08.17"]
[Round "1"]
[White "Cox, Ben"]
[Black "Jayawarna, Nugith"]
[Result "1/2-1/2"]
[ECO "B22"]
[WhiteElo "1466"]
[BlackElo "2013"]
[Annotator "NA RC"]
[PlyCount "74"]
[EventDate "2018.08.17"]
[EventType "swiss"]
[EventCountry "GGB"]
[SourceTitle "playchess.com"]
[Source "ChessBase"]
[SourceQuality "1"]
[TimeControl "6600+10"]

1. e4 {[%emt 0:00:00]} c5 {[%emt 0:00:00]} 2. d4 {[%emt 0:00:00]} cxd4 {[%emt 0:00:18]} 3. c3 {[%emt 0:00:06]} Nf6 {[%emt 0:00:03]} 4. e5 {[%emt 0:00:06]} Nd5 {[%emt 0:00:03]} 5. Nf3 {[%emt 0:00:14]} e6 {[%emt 0:00:20]} 6. cxd4 {[%emt 0:00:28]} b6 {[%emt 0:00:26]} 7. a3 {[%emt 0:00:52]} Bb7 {[%emt 0:00:34]} 8. Bd3 {[%emt 0:01:25]} Be7 {[%emt 0:06:50]} 9. O-O {[%emt 0:00:47]} O-O {[%emt 0:09:37]} 10. Nc3 {[%emt 0:03:23]} Nxc3 {[%emt 0:06:34]} 11. bxc3 {[%emt 0:00:06]} d6 {[%emt 0:14:00]} 12. Bf4 {[%emt 0:03:38]} Nc6 {[%emt 0:04:45]} 13. exd6 {[%emt 0:05:45]} Bxd6 {[%emt 0:01:17]} 14. Bxh7+ {[%emt 0:01:50]} Kxh7 {[%emt 0:21:21]} 15. Ng5+ {[%emt 0:00:19]} Kg6 {[%emt 0:00:42]} 16. Qd3+ {[%emt 0:04:59]} f5 {[%emt 0:02:04]} 17. Nxe6 {[%emt 0:01:26]} Qf6 {[%emt 0:06:00]} 18. Bxd6 {[%emt 0:06:02]} Qxe6 {[%emt 0:02:00]} 19. Bxf8 {[%emt 0:01:05]} Rxf8 {[%emt 0:00:16]} 20. d5 {[%emt 0:00:19]} Qd6 {[%emt 0:01:30]} 21. Rfe1 {[%emt 0:03:26]} Rf6 {[%emt 0:09:21]} 22. Re3 {[%emt 0:02:14]} Na5 {[%emt 0:04:24]} 23. Qb5 {[%emt 0:06:56]} Qxd5 {[%emt 0:03:04]} 24. Qe8+ {[%emt 0:03:17]} Kh7 {[%emt 0:05:34]} 25. Rh3+ {[%emt 0:00:58]} Rh6 {[%emt 0:00:04]} 26. Rxh6+ {[%emt 0:00:19]} Kxh6 {[%emt 0:00:07]} 27. Qh8+ {[%emt 0:00:19]} Kg6 {[%emt 0:00:18]} 28. Qe8+ {[%emt 0:00:26]} Kf6 {[%emt 0:03:08]} 29. f3 {[%emt 0:01:03]} Qc5+ {[%emt 0:00:37]} 30. Kh1 {[%emt 0:00:38]} Qe7 {[%emt 0:02:28]} 31. Re1 {[%emt 0:01:30]} Qxe8 {[%emt 0:00:20]} 32. Rxe8 {[%emt 0:00:07]} Nc4 {[%emt 0:00:43]} 33. Rd8 {[%emt 0:00:51]} Nxa3 {[%emt 0:02:56]} 34. Rd7 {[%emt 0:00:17]} Bc8 {[%emt 0:00:38]} 35. Rc7 {[%emt 0:00:42]} Be6 {[%emt 0:00:27]} 36. Rxa7 {[%emt 0:00:18]} Nb5 {[%emt 0:00:30]} 37. Ra6 {[%emt 0:00:37]} Nxc3 {[%emt 0:00:06]} 1/2-1/2

[Event "8th Gibraltar U16-Junior 2018"]
[Site "Caleta"]
[Date "2018.08.17"]
[Round "1"]
[White "Bansal, Saahil"]
[Black "Ledesma Claros, Daniel"]
[Result "0-1"]
[ECO "E11"]
[WhiteElo "1454"]
[BlackElo "1954"]
[Annotator "NA RC"]
[PlyCount "120"]
[EventDate "2018.08.17"]
[EventType "swiss"]
[EventCountry "GGB"]
[SourceTitle "playchess.com"]
[Source "ChessBase"]
[SourceQuality "1"]
[TimeControl "6600+10"]

1. d4 {[%emt 0:00:00]} Nf6 {[%emt 0:00:01]} 2. c4 {[%emt 0:00:00]} e6 {[%emt 0:00:02]} 3. Nf3 {[%emt 0:00:05]} Bb4+ {[%emt 0:00:12]} 4. Bd2 {[%emt 0:00:07]} Qe7 {[%emt 0:00:05]} 5. a3 {[%emt 0:00:05]} Bxd2+ {[%emt 0:00:04]} 6. Nbxd2 {[%emt 0:00:05]} d6 {[%emt 0:00:05]} 7. e4 {[%emt 0:00:12]} e5 {[%emt 0:00:05]} 8. d5 {[%emt 0:00:03]} O-O {[%emt 0:00:27]} 9. Bd3 {[%emt 0:00:22]} a5 {[%emt 0:02:39]} 10. b4 {[%emt 0:00:27]} Nh5 {[%emt 0:00:29]} 11. g3 {[%emt 0:01:48]} g6 {[%emt 0:09:30]} 12. Nh4 {[%emt 0:03:07]} Nf4 {[%emt 0:09:42]} 13. gxf4 {[%emt 0:01:03]} Qxh4 {[%emt 0:00:06]} 14. fxe5 {[%emt 0:00:03]} dxe5 {[%emt 0:00:55]} 15. Nf3 {[%emt 0:00:09]} Qf4 {[%emt 0:00:22]} 16. Nd2 {[%emt 0:05:05]} f5 {[%emt 0:04:26]} 17. bxa5 {[%emt 0:03:09]} fxe4 {[%emt 0:00:15]} 18. Nxe4 {[%emt 0:00:10]} Bg4 {[%emt 0:00:55]} 19. Qc2 {[%emt 0:04:35]} Rxa5 {[%emt 0:05:36]} 20. Rg1 {[%emt 0:03:47]} Bf5 {[%emt 0:02:20]} 21. Qe2 {[%emt 0:01:05]} Qxh2 {[%emt 0:03:07]} 22. Kd2 {[%emt 0:01:26]} Bxe4 {[%emt 0:00:38]} 23. Qxe4 {[%emt 0:01:52]} Qxf2+ {[%emt 0:03:25]} 24. Kc3 {[%emt 0:00:46]} Rxa3+ {[%emt 0:05:25]} 25. Rxa3 {[%emt 0:01:18]} Qxg1 {[%emt 0:00:07]} 26. Qxe5 {[%emt 0:00:09]} Qc1+ {[%emt 0:00:45]} 27. Kb3 {[%emt 0:00:47]} Qf4 {[%emt 0:01:27]} 28. Qxf4 {[%emt 0:01:39]} Rxf4 {[%emt 0:00:06]} 29. Ra7 {[%emt 0:00:16]} Na6 {[%emt 0:01:30]} 30. Be2 {[%emt 0:00:48]} h5 {[%emt 0:03:52]} 31. Ra8+ {[%emt 0:01:38]} Kg7 {[%emt 0:00:19]} 32. Re8 {[%emt 0:00:07]} b6 {[%emt 0:01:06]} 33. Re3 {[%emt 0:00:24]} Nc5+ {[%emt 0:00:41]} 34. Kb4 {[%emt 0:00:09]} Re4 {[%emt 0:01:38]} 35. Rxe4 {[%emt 0:00:24]} Nxe4 {[%emt 0:00:04]} 36. Kb5 {[%emt 0:00:04]} Nc3+ {[%emt 0:00:32]} 37. Kc6 {[%emt 0:00:05]} Nxe2 {[%emt 0:00:12]} 38. Kxc7 {[%emt 0:00:06]} h4 {[%emt 0:00:18]} 39. d6 {[%emt 0:00:03]} h3 {[%emt 0:00:38]} 40. d7 {[%emt 0:00:20]} Nf4 {[%emt 0:00:10]} 41. Kd6 {[%emt 0:00:06]} h2 {[%emt 0:00:37]} 42. d8=Q {[%emt 0:00:14]} h1=Q {[%emt 0:00:09]} 43. Qe7+ {[%emt 0:00:12]} Kh6 {[%emt 0:00:54]} 44. Qe5 {[%emt 0:00:42]} Qd1+ {[%emt 0:03:04]} 45. Kc6 {[%emt 0:00:25]} Qa4+ {[%emt 0:00:54]} 46. Kxb6 {[%emt 0:00:09]} Qxc4 {[%emt 0:00:47]} 47. Qh8+ {[%emt 0:00:16]} Kg5 {[%emt 0:00:07]} 48. Qd8+ {[%emt 0:00:13]} Kg4 {[%emt 0:00:20]} 49. Qd1+ {[%emt 0:00:07]} Kf5 {[%emt 0:00:50]} 50. Qb1+ {[%emt 0:00:23]} Qd3 {[%emt 0:00:17]} 51. Qh1 {[%emt 0:01:09]} Qd6+ {[%emt 0:00:30]} 52. Ka7 {[%emt 0:00:13]} Qd4+ {[%emt 0:00:29]} 53. Kb8 {[%emt 0:00:21]} Ke6 {[%emt 0:03:01]} 54. Qb1 {[%emt 0:00:14]} g5 {[%emt 0:01:51]} 55. Qb3+ {[%emt 0:00:13]} Nd5 {[%emt 0:00:42]} 56. Qh3+ {[%emt 0:00:10]} g4 {[%emt 0:00:13]} 57. Qh6+ {[%emt 0:00:09]} Qf6 {[%emt 0:00:19]} 58. Qh5 {[%emt 0:00:21]} Qd8+ {[%emt 0:00:30]} 59. Kb7 {[%emt 0:00:08]} Qc7+ {[%emt 0:00:02]} 60. Ka8 {[%emt 0:00:08]} Nb6# 0-1

[Event "8th Gibraltar U16-Junior 2018"]
[Site "Caleta"]
[Date "2018.08.17"]
[Round "1"]
[White "Chouki, Aali"]
[Black "Ifalore, Michael"]
[Result "0-1"]
[ECO "C55"]
[WhiteElo "1413"]
[BlackElo "1881"]
[Annotator "NA RC"]
[PlyCount "36"]
[EventDate "2018.08.17"]
[EventType "swiss"]
[EventCountry "GGB"]
[SourceTitle "playchess.com"]
[Source "ChessBase"]
[SourceQuality "1"]
[TimeControl "6600+10"]

1. e4 {[%emt 0:00:00]} e5 {[%emt 0:00:00]} 2. Bc4 {[%emt 0:00:04]} Nf6 {[%emt 0:00:01]} 3. d3 {[%emt 0:00:20]} Nc6 {[%emt 0:00:04]} 4. Nf3 {[%emt 0:00:21]} Be7 {[%emt 0:00:07]} 5. c3 {[%emt 0:00:51]} O-O {[%emt 0:00:07]} 6. Nbd2 {[%emt 0:00:25]} d6 {[%emt 0:00:06]} 7. Nf1 {[%emt 0:01:56]} a6 {[%emt 0:03:25]} 8. Bb3 {[%emt 0:02:47]} Na5 {[%emt 0:03:40]} 9. Bc2 {[%emt 0:01:58]} c5 {[%emt 0:01:26]} 10. Ng3 {[%emt 0:08:05]} Nc6 {[%emt 0:01:46]} 11. O-O {[%emt 0:02:53]} Re8 {[%emt 0:01:46]} 12. h3 {[%emt 0:05:42]} Qc7 {[%emt 0:06:35]} 13. Nh4 {[%emt 0:25:23]} Nxe4 {[%emt 0:02:06]} 14. Nxe4 {[%emt 0:28:55]} Bxh4 {[%emt 0:00:11]} 15. f4 {[%emt 0:16:10]} Be7 {[%emt 0:04:48]} 16. fxe5 {[%emt 0:07:36]} Nxe5 {[%emt 0:00:26]} 17. d4 {[%emt 0:05:41]} Ng6 {[%emt 0:00:08]} 18. Qf3 {[%emt 0:01:07]} Be6 {[%emt 0:01:15]} 0-1